fUSD/lending_fUSD_20241207
["ID","MTS","AMOUNT","RATE_DAILY","PERIOD"]
[344569623,1733554253261,-5727.33,0.00019999,2]
[344569624,1733554253271,-5727.33,0.00019999,2]
[344569625,1733554253280,-5727.33,0.00019999,2]
[344569626,1733554253290,-5727.33,0.00019999,2]
[344569627,1733554253299,-5727.33,0.00019999,2]
[344569628,1733554253308,-5727.33,0.00019999,2]
[344569629,1733554253317,-5727.33,0.00019999,2]
[344569630,1733554253327,-5727.33,0.00019999,2]
[344569631,1733554253336,-5727.33,0.00019999,2]
[344569632,1733554253346,-5727.33,0.00019999,2]
[344569633,1733554253355,-5727.33,0.00019999,2]
[344569634,1733554253365,-5727.33,0.00019999,2]
[344569635,1733554253375,-3000.0,0.00019999,2]
[344569636,1733554253384,-2110.0,0.0002,2]
[344569637,1733554253394,-250.0,0.0002,2]
[344569638,1733554253404,-201.0,0.0002,2]
[344569639,1733554253414,-201.0,0.0002,2]
[344569640,1733554253423,-201.0,0.0002,2]
[344569641,1733554253432,-201.0,0.0002,2]
[344569642,1733554253441,-201.0,0.0002,2]
[344569643,1733554253450,-201.0,0.0002,2]
[344569644,1733554253460,-201.0,0.0002,2]
[344569645,1733554253469,-201.0,0.0002,2]
[344569646,1733554253478,-201.0,0.0002,2]
[344569647,1733554253487,-201.0,0.0002,2]
[344569648,1733554253497,-201.0,0.0002,2]
[344569649,1733554253507,-204.0,0.0002,2]
[344569650,1733554253516,-204.0,0.0002,2]
[344569651,1733554253524,-204.0,0.0002,2]
[344569652,1733554253534,-204.0,0.0002,2]
[344569653,1733554253543,-204.0,0.0002,2]
[344569654,1733554253552,-204.0,0.0002,2]
[344569655,1733554253561,-204.0,0.0002,2]
[344569656,1733554253570,-204.0,0.0002,2]
[344569657,1733554253751,-204.0,0.0002,2]
[344569658,1733554253762,-257.0,0.0002,2]
[344569659,1733554253771,-257.0,0.0002,2]
[344569660,1733554253781,-257.0,0.0002,2]
[344569661,1733554253790,-257.0,0.0002,2]
[344569662,1733554253799,-257.0,0.0002,2]
[344569663,1733554253810,-257.0,0.0002,2]
[344569664,1733554253820,-257.0,0.0002,2]
[344569665,1733554253830,-257.0,0.0002,2]
[344569666,1733554253839,-257.0,0.0002,2]
[344569667,1733554253850,-500.0,0.0002,2]
[344569668,1733554253860,-501.0,0.0002,2]
[344569669,1733554253869,-241.0,0.0002,2]
[344569670,1733554253879,-150.0,0.0002,60]
[344569671,1733554253890,-2000.0,0.0002,2]
[344569672,1733554253899,-7712.02313648,0.0002,2]
[344569673,1733554253908,-2100.0,0.0002,30]
[344569674,1733554253918,-400.86567651,0.0002,2]
[344569675,1733554253927,-240.51940591,0.0002,2]
[344569676,1733554253937,-160.3462706,0.0002,2]
[344569677,1733554253946,-1835.4607139,0.0002,2]
[344569678,1733554253956,-1538.0,0.0002,7]
[344569679,1733554253965,-151.0,0.0002,2]
[344569680,1733554253975,-151.0,0.0002,2]
[344569681,1733554253984,-151.0,0.0002,2]
[344569682,1733554253993,-151.0,0.0002,2]
[344569683,1733554254003,-151.0,0.0002,2]
[344569684,1733554254013,-151.0,0.0002,2]
[344569685,1733554254022,-151.0,0.0002,2]
[344569686,1733554254031,-151.0,0.0002,2]
[344569687,1733554254041,-800.0,0.0002,2]
[344569688,1733554254050,-151.0,0.0002,2]
[344569689,1733554254060,-800.0,0.0002,2]
[344569690,1733554254069,-800.0,0.0002,2]
[344569691,1733554254078,-800.0,0.0002,2]
[344569692,1733554254088,-800.0,0.0002,2]
[344569693,1733554254097,-800.0,0.0002,2]
[344569694,1733554254107,-800.0,0.0002,2]
[344569695,1733554254116,-404.47768576,0.0002,4]
[344569696,1733554254126,-150.0,0.0002,4]
[344569697,1733554254135,-150.0,0.0002,4]
[344569698,1733554254145,-150.0,0.0002,4]
[344569699,1733554254155,-258.80130606,0.0002,4]
[344569700,1733554254164,-150.0,0.0002,4]
[344569701,1733554254174,-150.0,0.0002,4]
[344569702,1733554254183,-150.0,0.0002,4]
[344569703,1733554254193,-150.0,0.0002,4]
[344569704,1733554254202,-150.0,0.0002,4]
[344569705,1733554254212,-22496.07189676,0.0002,2]
[344569706,1733554254221,-150.0,0.0002,4]
[344569707,1733554254231,-259.02258733,0.0002,4]
[344569708,1733554254240,-150.0,0.0002,4]
[344569709,1733554254249,-158.0,0.0002,2]
[344569710,1733554254259,-158.0,0.0002,2]
[344569711,1733554254268,-158.0,0.0002,2]
[344569712,1733554254278,-1000.0,0.0002,2]
[344569713,1733554254287,-1200.0,0.0002,5]
[344569714,1733554254296,-500.0,0.0002,2]
[344569715,1733554254306,-10000.0,0.0002,5]
[344569716,1733554254315,-3890.036933,0.0002001,2]
[344569717,1733554254324,-404.47768576,0.00020069,4]
[344569718,1733554254333,-258.80130606,0.00020069,4]
[344569719,1733554254343,-204.0,0.0002008,2]
[344569720,1733554254352,-257.0,0.0002008,2]
[344569721,1733554254361,-404.47768576,0.00020138,4]
[344569722,1733554254371,-258.80130606,0.00020138,4]
[344569723,1733554254382,-150.0,0.00020152,4]
[344569724,1733554254391,-150.0,0.00020188,2]
[344569725,1733554254400,-404.47768576,0.00020207,4]
[344569726,1733554254409,-258.80130606,0.00020207,4]
[344569727,1733554254418,-150.0,0.00020207,4]
[344569728,1733554254429,-981.0,0.00020273,2]
[344569729,1733554254438,-500.0,0.00020273,2]
[344569730,1733554254447,-404.47768576,0.00020276,4]
[344569731,1733554254456,-258.80130606,0.00020276,4]
[344569732,1733554254466,-150.0,0.00020303,4]
[344569733,1733554254475,-404.47768576,0.00020345,4]
[344569734,1733554254484,-258.80130606,0.00020345,4]
[344569735,1733554254494,-150.0,0.00020379,4]
[344569736,1733554254503,-1056.0,0.00020385,2]
[344569737,1733554254513,-404.47768576,0.00020414,4]
[344569738,1733554254523,-258.80130606,0.00020414,4]
[344569739,1733554254532,-150.0,0.00020414,4]
[344569740,1733554254541,-150.0,0.00020455,4]
[344569741,1733554254551,-404.47768576,0.00020483,4]
[344569742,1733554254560,-258.80130606,0.00020483,4]
[344569743,1733554254569,-2110.0,0.000205,2]
[344569744,1733554254578,-1538.0,0.000205,8]
[344569745,1733554254588,-500.0,0.00020547,2]
[344569746,1733554254597,-572.28111349,0.00020547,2]
[344569747,1733554254607,-500.0,0.00020547,2]
[344569748,1733554254618,-3250.37,0.00020547,2]
[344569749,1733554254628,-1104.84,0.00020547,2]
[344569750,1733554254638,-178.25,0.00020548,2]
[344569751,1733554254647,-20368.39,0.00020548,2]
[344569752,1733554254657,-150.0,0.00020548,2]
[344569753,1733554254666,-404.47768576,0.00020552,4]
[344569754,1733554254675,-258.80130606,0.00020552,4]
[344569755,1733554254684,-150.0,0.00020607,4]
[344569756,1733554254695,-150.0,0.00020612,2]
[344569757,1733554254705,-193.88,0.00020612,2]
[344569758,1733554254715,-728.4,0.00020612,2]
[344569759,1733554254725,-404.47768576,0.00020621,4]
[344569760,1733554254736,-258.80130606,0.00020621,4]
[344569761,1733554254745,-150.0,0.00020621,4]
[344569762,1733554254755,-404.47768576,0.00020689,4]
[344569763,1733554254764,-258.80130606,0.00020689,4]
[344569764,1733554254773,-404.47768576,0.00020758,4]
[344569765,1733554254783,-258.80130606,0.00020758,4]
[344569766,1733554254792,-150.0,0.00020758,4]
[344569767,1733554254802,-150.0,0.00020758,4]
[344569768,1733554254813,-150.0,0.00020758,4]
[344569769,1733554254823,-1900.0,0.00020798,2]
[344569770,1733554254832,-500.0,0.00020798,2]
[344569771,1733554254842,-2900.0,0.00020798,2]
[344569772,1733554254853,-500.0,0.00020821,2]
[344569773,1733554254862,-404.47768576,0.00020827,4]
[344569774,1733554254871,-258.80130606,0.00020827,4]
[344569775,1733554254884,-150.0,0.00020827,4]
[344569776,1733554254894,-35238.06180923,0.00020859,2]
[344569777,1733554254903,-404.47768576,0.00020896,4]
[344569778,1733554254912,-258.80130606,0.00020896,4]
[344569779,1733554254922,-150.0,0.0002091,4]
[344569780,1733554254931,-404.47768576,0.00020965,4]
[344569781,1733554254940,-258.80130606,0.00020965,4]
[344569782,1733554254950,-7933.0,0.00021,2]
[344569783,1733554254959,-1140.20261779,0.00021,2]
[344569784,1733554254969,-188.13995195,0.00021,2]
[344569785,1733554254978,-14326.9160052,0.00021,60]
[344569786,1733554254988,-2110.0,0.00021,2]
[344569787,1733554254997,-600.0,0.00021,2]
[344569788,1733554255006,-600.0,0.00021,2]
[344569789,1733554255016,-3000.0,0.00021,2]
[344569790,1733554255025,-1538.0,0.00021,9]
[344569791,1733554255033,-404.47768576,0.00021034,4]
[344569792,1733554255043,-258.80130606,0.00021034,4]
[344569793,1733554255052,-150.0,0.00021034,4]
[344569794,1733554255062,-150.0,0.00021062,4]
[344569795,1733554255071,-500.0,0.00021095,2]
[344569796,1733554255081,-404.47768576,0.00021103,4]
[344569797,1733554255091,-258.80130606,0.00021103,4]
[344569798,1733554255100,-150.0,0.00021138,4]
[344569799,1733554255110,-404.47768576,0.00021172,4]
[344569800,1733554255120,-258.80130606,0.00021172,4]
[344569801,1733554255130,-150.0,0.00021214,4]
[344569802,1733554255139,-404.47768576,0.00021241,4]
[344569803,1733554255150,-258.80130606,0.00021241,4]
[344569804,1733554255160,-150.0,0.00021241,4]
[344569805,1733554255170,-404.47768576,0.0002131,4]
[344569806,1733554255180,-258.80130606,0.0002131,4]
[344569807,1733554255189,-150.0,0.00021365,4]
[344569808,1733554255199,-150.0,0.00021365,4]
[344569809,1733554255208,-500.0,0.00021369,2]
[344569810,1733554255218,-5009.02,0.0002137,2]
[344569811,1733554255227,-404.47768576,0.00021379,4]
[344569812,1733554255237,-258.80130606,0.00021379,4]
[344569813,1733554255247,-434.3857736,0.00021404,2]
[344569814,1733554255256,-404.47768576,0.00021448,4]
[344569815,1733554255266,-258.80130606,0.00021448,4]
[344569816,1733554255275,-150.0,0.00021448,4]
[344569817,1733554255285,-2110.0,0.000215,2]
[344569818,1733554255294,-1538.0,0.000215,9]
[344569819,1733554255304,-365.617,0.000215,2]
[344569820,1733554255313,-404.47768576,0.00021517,4]
[344569821,1733554255324,-258.80130606,0.00021517,4]
[344569822,1733554255333,-150.0,0.00021517,4]
[344569823,1733554255343,-150.0,0.00021517,4]
[344569824,1733554255353,-150.0,0.00021517,4]
[344569825,1733554255362,-4483.95477484,0.0002152,2]
[344569826,1733554255372,-404.47768576,0.00021586,4]
[344569827,1733554255390,-258.80130606,0.00021586,4]
[344569828,1733554255399,-500.0,0.00021643,2]
[344569829,1733554255408,-404.47768576,0.00021655,4]
[344569830,1733554255418,-258.80130606,0.00021655,4]
[344569831,1733554255428,-150.0,0.00021655,4]
[344569832,1733554255437,-150.0,0.00021669,4]
[344569833,1733554255446,-7220.45839551,0.000217,2]
[344569834,1733554255455,-404.47768576,0.00021724,4]
[344569835,1733554255464,-258.80130606,0.00021724,4]
[344569836,1733554255473,-785.56,0.00021727,2]
[344569837,1733554255483,-404.47768576,0.00021793,4]
[344569838,1733554255492,-258.80130606,0.00021793,4]
[344569839,1733554255502,-150.0,0.0002182,4]
[344569840,1733554255511,-436.38,0.00021826,30]
[344569841,1733554255520,-404.47768576,0.00021862,4]
[344569842,1733554255529,-258.80130606,0.00021862,4]
[344569843,1733554255539,-150.0,0.00021862,4]
[344569844,1733554255547,-1900.0,0.00021894,2]
[344569845,1733554255557,-2900.0,0.00021894,2]
[344569846,1733554255566,-150.0,0.00021896,4]
[344569847,1733554255575,-500.0,0.00021917,2]
[344569848,1733554255584,-734.52952348,0.00021917,120]
[344569849,1733554255593,-500.0,0.00021917,2]
[344569850,1733554255603,-500.0,0.00021917,2]
[344569851,1733554255612,-374.01256532,0.00021917,2]
[344569852,1733554255621,-500.0,0.00021917,2]
[344569853,1733554255633,-500.0,0.00021917,2]
[344569854,1733554255642,-500.0,0.00021917,2]
[344569855,1733554255651,-500.0,0.00021917,2]
[344569856,1733554255660,-500.0,0.00021917,2]
[344569857,1733554255670,-500.0,0.00021917,2]
[344569858,1733554255679,-500.0,0.00021917,2]
[344569859,1733554255688,-500.0,0.00021917,2]
[344569860,1733554255697,-337.65788609,0.00021917,2]
[344569861,1733554255706,-600.0,0.00021917,2]
[344569862,1733554255715,-600.0,0.00021917,2]
[344569863,1733554255724,-600.0,0.00021917,2]
[344569864,1733554255733,-600.0,0.00021917,2]
[344569865,1733554255742,-600.0,0.00021917,2]
[344569866,1733554255751,-600.0,0.00021917,2]
[344569867,1733554255760,-600.0,0.00021917,2]
[344569868,1733554255770,-600.0,0.00021917,2]
[344569869,1733554255779,-600.0,0.00021917,2]
[344569870,1733554255788,-308.30854805,0.00021917,2]
[344569871,1733554255797,-1401.49,0.00021917,2]
[344569872,1733554255807,-1401.49,0.00021917,2]
[344569873,1733554255820,-1401.49,0.00021917,2]
[344569874,1733554255829,-1401.49,0.00021917,2]
[344569875,1733554255839,-1401.49,0.00021917,2]
[344569876,1733554255848,-1401.49,0.00021917,2]
[344569877,1733554255858,-1401.49,0.00021917,2]
[344569878,1733554255867,-1401.49,0.00021917,2]
[344569879,1733554255877,-1401.49,0.00021917,2]
[344569880,1733554255887,-1401.49,0.00021917,2]
[344569881,1733554255897,-1401.49,0.00021917,2]
[344569882,1733554255906,-1401.49,0.00021917,2]
[344569883,1733554255916,-1401.49,0.00021917,2]
[344569884,1733554255925,-1401.49,0.00021917,2]
[344569885,1733554255935,-1401.49,0.00021917,2]
[344569886,1733554255944,-1401.49,0.00021917,2]
[344569887,1733554255953,-1401.49,0.00021917,2]
[344569888,1733554255963,-1401.49,0.00021917,2]
[344569889,1733554255972,-1401.49,0.00021917,2]
[344569890,1733554255982,-1401.49,0.00021917,2]
[344569891,1733554255991,-1401.49,0.00021917,2]
[344569892,1733554256000,-1401.49,0.00021917,2]
[344569893,1733554256010,-1401.49,0.00021917,2]
[344569894,1733554256020,-1401.60916915,0.00021917,2]
[344569895,1733554256030,-373.8634377,0.00021917,2]
[344569896,1733554256039,-1000.0,0.00021917,30]
[344569897,1733554256091,-1000.0,0.00021917,30]
[344569898,1733554256101,-428.87537594,0.00021917,30]
[344569899,1733554256111,-1253.09,0.00021917,2]
[344569900,1733554256123,-1253.09,0.00021917,2]
[344569901,1733554256133,-1253.09,0.00021917,2]
[344569902,1733554256142,-1253.09,0.00021917,2]
[344569903,1733554256153,-1253.09,0.00021917,2]
[344569904,1733554256163,-1253.09,0.00021917,2]
[344569905,1733554256172,-1253.09,0.00021917,2]
[344569906,1733554256183,-1253.09,0.00021917,2]
[344569907,1733554256192,-1253.09,0.00021917,2]
[344569908,1733554256202,-1253.09,0.00021917,2]
[344569909,1733554256212,-1253.09,0.00021917,2]
[344569910,1733554256222,-1253.09,0.00021917,2]
[344569911,1733554256232,-1253.09,0.00021917,2]
[344569912,1733554256242,-1253.09,0.00021917,2]
[344569913,1733554256251,-1253.09,0.00021917,2]
[344569914,1733554256261,-1253.09,0.00021917,2]
[344569915,1733554256270,-1253.09,0.00021917,2]
[344569916,1733554256280,-1253.09,0.00021917,2]
[344569917,1733554256290,-910.28,0.00021917,2]
[344569918,1733554256300,-1253.09,0.00021917,2]
[344569919,1733554256309,-910.28,0.00021917,2]
[344569920,1733554256318,-1253.09,0.00021917,2]
[344569921,1733554256327,-910.28,0.00021917,2]
[344569922,1733554256336,-1253.09,0.00021917,2]
[344569923,1733554256345,-910.28,0.00021917,2]
[344569924,1733554256355,-1253.09,0.00021917,2]
[344569925,1733554256364,-910.28,0.00021917,2]
[344569926,1733554256374,-1253.09,0.00021917,2]
[344569927,1733554256383,-910.28,0.00021917,2]
[344569928,1733554256392,-1253.31922534,0.00021917,2]
[344569929,1733554256402,-17113.38,0.00021918,2]
[344569930,1733554256411,-500.0,0.00021918,2]
[344569931,1733554256420,-500.0,0.00021918,2]
[344569932,1733554256429,-500.0,0.00021918,2]
[344569933,1733554256438,-500.0,0.00021918,2]
[344569934,1733554256447,-500.0,0.00021918,2]
[344569935,1733554256456,-500.0,0.00021918,2]
[344569936,1733554256464,-500.0,0.00021918,2]
[344569937,1733554256473,-500.0,0.00021918,2]
[344569938,1733554256482,-500.0,0.00021918,2]
[344569939,1733554256491,-500.0,0.00021918,2]
[344569940,1733554256500,-500.0,0.00021918,2]
[344569941,1733554256509,-500.0,0.00021918,2]
[344569942,1733554256518,-500.0,0.00021918,2]
[344569943,1733554256528,-500.0,0.00021918,2]
[344569944,1733554256537,-500.0,0.00021918,2]
[344569945,1733554256546,-500.0,0.00021918,2]
[344569946,1733554256555,-500.0,0.00021918,2]
[344569947,1733554256564,-500.0,0.00021918,2]
[344569948,1733554256573,-600.92673893,0.00021918,2]
[344569949,1733554256582,-515.93520089,0.00021918,2]
[344569950,1733554256591,-404.47768576,0.00021931,4]
[344569951,1733554256600,-258.80130606,0.00021931,4]
[344569952,1733554256609,-150.0,0.00021972,4]
[344569953,1733554256618,-2000.0,0.0002199,120]
[344569954,1733554256629,-500.0,0.00021999,2]
[344569955,1733554256639,-3250.37,0.00021999,2]
[344569956,1733554256648,-1104.84,0.00021999,2]
[344569957,1733554256657,-404.47768576,0.00022,4]
[344569958,1733554256665,-258.80130606,0.00022,4]
[344569959,1733554256674,-2200.0,0.00022,30]
[344569960,1733554256684,-31035.29009468,0.00022,10]
[344569961,1733554256693,-5240.00487408,0.00022,120]
[344569962,1733554256702,-244.87983567,0.00022,2]
[344569963,1733554256711,-3283.50912544,0.00022,2]
[344569964,1733554256719,-753.86867824,0.00022,7]
[344569965,1733554256729,-7993.81160339,0.00022,15]
[344569966,1733554256738,-2110.0,0.00022,2]
[344569967,1733554256746,-250.0,0.00022,120]
[344569968,1733554256756,-1538.0,0.00022,10]
[344569969,1733554256765,-548.426,0.00022,7]
[344569970,1733554256773,-404.47768576,0.00022068,4]
[344569971,1733554256783,-258.80130606,0.00022068,4]
[344569972,1733554256792,-150.0,0.00022068,4]
[344569973,1733554256801,-229.49266142,0.0002211,2]
[344569974,1733554256812,-150.0,0.00022124,4]
[344569975,1733554256823,-404.47768576,0.00022137,4]
[344569976,1733554256832,-258.80130606,0.00022137,4]
[344569977,1733554256842,-200.0,0.00022164,120]
[344569978,1733554256851,-500.0,0.00022191,2]
[344569979,1733554256862,-500.0,0.000222,15]
[344569980,1733554256871,-35238.06180923,0.00022206,2]
[344569981,1733554256881,-404.47768576,0.00022206,4]
[344569982,1733554256890,-258.80130606,0.00022206,4]
[344569983,1733554256899,-910.28,0.00022218,2]
[344569984,1733554256908,-1999.0,0.00022219,2]
[344569985,1733554256917,-1999.0,0.00022219,2]
[344569986,1733554256926,-421.64140168,0.00022219,2]
[344569987,1733554256935,-1999.0,0.00022219,2]
[344569988,1733554256944,-1999.0,0.00022219,2]
[344569989,1733554256953,-1999.0,0.00022219,2]
[344569990,1733554256962,-1999.0,0.00022219,2]
[344569991,1733554256971,-1999.0,0.00022219,2]
[344569992,1733554256982,-1999.0,0.00022219,2]
[344569993,1733554256992,-1999.0,0.00022219,2]
[344569994,1733554257003,-1999.0,0.00022219,2]
[344569995,1733554257012,-1999.0,0.00022219,2]
[344569996,1733554257021,-1999.0,0.00022219,2]
[344569997,1733554257030,-1999.0,0.00022219,2]
[344569998,1733554257039,-1999.0,0.00022219,2]
[344569999,1733554257048,-1999.0,0.00022219,2]
[344570000,1733554257058,-1999.0,0.00022219,2]
[344570001,1733554257067,-2092.40394375,0.00022219,2]
[344570002,1733554257075,-1999.0,0.00022219,2]
[344570003,1733554257084,-1999.0,0.00022219,2]
[344570004,1733554257093,-1999.0,0.00022219,2]
[344570005,1733554257103,-1999.0,0.00022219,2]
[344570006,1733554257112,-1999.0,0.00022219,2]
[344570007,1733554257121,-1999.0,0.00022219,2]
[344570008,1733554257131,-1999.0,0.00022219,2]
[344570009,1733554257140,-1999.0,0.00022219,2]
[344570010,1733554257150,-1999.0,0.00022219,2]
[344570011,1733554257161,-1999.0,0.00022219,2]
[344570012,1733554257171,-1999.0,0.00022219,2]
[344570013,1733554257180,-1999.0,0.00022219,2]
[344570014,1733554257189,-1999.0,0.00022219,2]
[344570015,1733554257198,-1999.0,0.00022219,2]
[344570016,1733554257207,-1999.0,0.00022219,2]
[344570017,1733554257216,-1999.0,0.00022219,2]
[344570018,1733554257226,-1999.0,0.00022219,2]
[344570019,1733554257235,-1999.0,0.00022219,2]
[344570020,1733554257245,-1999.0,0.00022219,2]
[344570021,1733554257255,-1999.0,0.00022219,2]
[344570022,1733554257263,-1999.0,0.00022219,2]
[344570023,1733554257272,-1999.0,0.00022219,2]
[344570024,1733554257282,-1999.0,0.00022219,2]
[344570025,1733554257291,-490.28166947,0.00022219,2]
[344570026,1733554257300,-150.0,0.00022259,2]
[344570027,1733554257309,-150.0,0.00022259,2]
[344570028,1733554257318,-150.0,0.00022259,2]
[344570029,1733554257328,-150.0,0.00022259,2]
[344570030,1733554257338,-150.0,0.00022259,2]
[344570031,1733554257347,-404.47768576,0.00022275,4]
[344570032,1733554257357,-258.80130606,0.00022275,4]
[344570033,1733554257366,-150.0,0.00022275,4]
[344570034,1733554257377,-150.0,0.00022275,4]
[344570035,1733554257386,-150.0,0.00022275,4]
[344570036,1733554257395,-150.0,0.00022275,4]
[344570037,1733554257405,-404.47768576,0.00022344,4]
[344570038,1733554257414,-258.80130606,0.00022344,4]
[344570039,1733554257423,-404.47768576,0.00022413,4]
[344570040,1733554257433,-258.80130606,0.00022413,4]
[344570041,1733554257442,-150.0,0.00022427,4]
[344570042,1733554257451,-500.0,0.00022465,2]
[344570043,1733554257460,-350.0,0.00022465,2]
[344570044,1733554257470,-309.77577039,0.00022465,2]
[344570045,1733554257479,-404.47768576,0.00022482,4]
[344570046,1733554257489,-258.80130606,0.00022482,4]
[344570047,1733554257498,-150.0,0.00022482,4]
[344570048,1733554257508,-2900.0,0.000225,15]
[344570049,1733554257516,-33866.05093511,0.000225,2]
[344570050,1733554257526,-2110.0,0.000225,2]
[344570051,1733554257536,-1538.0,0.000225,10]
[344570052,1733554257546,-404.47768576,0.00022551,4]
[344570053,1733554257556,-258.80130606,0.00022551,4]
[344570054,1733554257566,-150.0,0.00022579,4]
[344570055,1733554257575,-479.8067,0.0002258,7]
[344570056,1733554257585,-643.8,0.00022603,2]
[344570057,1733554257594,-164.4,0.00022603,2]
[344570058,1733554257603,-404.47768576,0.0002262,4]
[344570059,1733554257613,-258.80130606,0.0002262,4]
[344570060,1733554257623,-150.0,0.00022655,4]
[344570061,1733554257634,-307.94,0.00022681,2]
[344570062,1733554257644,-404.47768576,0.00022689,4]
[344570063,1733554257653,-258.80130606,0.00022689,4]
[344570064,1733554257663,-150.0,0.00022689,4]
[344570065,1733554257673,-543.283611,0.00022715,120]
[344570066,1733554257682,-500.0,0.00022715,120]
[344570067,1733554257691,-150.0,0.0002273,4]
[344570068,1733554257701,-150.0,0.0002273,4]
[344570069,1733554257710,-500.0,0.00022739,2]
[344570070,1733554257720,-404.47768576,0.00022758,4]
[344570071,1733554257730,-258.80130606,0.00022758,4]
[344570072,1733554257739,-2000.0,0.00022764,120]
[344570073,1733554257749,-500.0,0.00022799,2]
[344570074,1733554257758,-3250.37,0.00022799,2]
[344570075,1733554257768,-910.28,0.00022799,2]
[344570076,1733554257777,-1104.84,0.00022799,2]
[344570077,1733554257786,-310676.08386694,0.000228,14]
[344570078,1733554257795,-404.47768576,0.00022827,4]
[344570079,1733554257805,-258.80130606,0.00022827,4]
[344570080,1733554257816,-150.0,0.00022882,4]
[344570081,1733554257825,-404.47768576,0.00022896,4]
[344570082,1733554257835,-258.80130606,0.00022896,4]
[344570083,1733554257844,-150.0,0.00022896,4]
[344570084,1733554257853,-404.47768576,0.00022965,4]
[344570085,1733554257863,-258.80130606,0.00022965,4]
[344570086,1733554257873,-8538.44170693,0.00022975,2]
[344570087,1733554257884,-8538.44170691,0.00022975,2]
[344570088,1733554257895,-8538.44170691,0.00022975,2]
[344570089,1733554257905,-500.0,0.0002299,2]
[344570090,1733554257914,-500.0,0.00022999,2]
[344570091,1733554257923,-3250.37,0.00022999,2]
[344570092,1733554257933,-1104.84,0.00022999,2]
[344570093,1733554257943,-5061.63484133,0.00023,2]
[344570094,1733554257952,-320.0,0.00023,10]
[344570095,1733554257961,-1000.0,0.00023,14]
[344570096,1733554257970,-2110.0,0.00023,2]
[344570097,1733554257980,-250.0,0.00023,120]
[344570098,1733554257990,-650.0,0.00023,2]
[344570099,1733554258000,-650.0,0.00023,2]
[344570100,1733554258010,-1538.0,0.00023,11]
[344570101,1733554258019,-172.0,0.00023,2]
[344570102,1733554258029,-267.13041927,0.0002301,2]
[344570103,1733554258039,-500.0,0.00023013,2]
[344570104,1733554258049,-404.47768576,0.00023034,4]
[344570105,1733554258059,-258.80130606,0.00023034,4]
[344570106,1733554258068,-150.0,0.00023034,4]
[344570107,1733554258078,-150.0,0.00023034,4]
[344570108,1733554258089,-150.0,0.00023034,4]
[344570109,1733554258099,-404.47768576,0.00023103,4]
[344570110,1733554258109,-258.80130606,0.00023103,4]
[344570111,1733554258119,-150.0,0.00023103,4]
[344570112,1733554258128,-200.0,0.00023113,120]
[344570113,1733554258137,-404.47768576,0.00023172,4]
[344570114,1733554258147,-258.80130606,0.00023172,4]
[344570115,1733554258158,-150.0,0.00023185,4]
[344570116,1733554258167,-49810.62740944,0.000232,2]
[344570117,1733554258177,-151.0,0.000232,7]
[344570118,1733554258187,-151.0,0.000232,7]
[344570119,1733554258196,-567.12636617,0.0002322,2]
[344570120,1733554258205,-404.47768576,0.00023241,4]
[344570121,1733554258215,-258.80130606,0.00023241,4]
[344570122,1733554258225,-500.0,0.00023287,2]